bitfinex-derivatives/quotes_SOLF0:USTF0_20240926
["timestamp","ask_amount","ask_price","bid_price","bid_amount"]
[1727349721276,1.3834,152.99,152.9,17.25]
[1727349721676,3.2686,152.98,152.95,3.2691]
[1727349721874,1.3834,152.99,152.9,17.25]
[1727349721875,4.72981548,152.99,152.9,17.25]
[1727349722183,7.99821548,152.99,152.96,3.2688]
[1727349722678,3.2676,153.03,153.0,3.268]
[1727349722879,1.2725,153.05,152.96,17.25]
[1727349722880,1.3222,153.04,152.96,17.25]
[1727349723070,3.34456884,153.03,152.96,17.25]
[1727349723274,1.3222,153.04,152.96,17.25]
[1727349723476,4.5895,153.04,153.01,3.2678]
[1727349723673,1.3222,153.04,152.98,17.25]
[1727349724074,1.2725,153.05,153.03,3.2673]
[1727349724271,1.2725,153.05,153.01,17.25]
[1727349724679,1.2725,153.05,153.03,3.2674]
[1727349726274,3.2666,153.07,153.04,3.2672]
[1727349726479,1.3222,153.09,153.03,17.25]
[1727349727076,4.5884,153.09,153.06,3.2667]
[1727349727278,1.3222,153.09,153.03,17.25]
[1727349727687,3.2668,153.07,153.03,3.2674]
[1727349727879,6.60297351,153.07,153.01,17.25]
[1727349728581,3.2668,153.06,153.03,3.2674]
[1727349729384,3.267,153.05,153.01,17.25]
[1727349729977,3.2673,153.04,153.01,17.25]
[1727349730187,3.33617351,153.07,153.01,17.25]
[1727349730482,3.267,153.06,153.01,17.25]
[1727349730681,6.55946992,153.06,153.01,17.25]
[1727349730881,3.267,153.06,153.01,17.25]
[1727349731186,3.267,153.06,153.03,3.2674]
[1727349731382,3.32418487,153.06,152.98,17.25]
[1727349731581,17.25,153.07,152.98,17.25]
[1727349731778,1.3502,153.05,152.98,17.25]
[1727349731984,3.2676,153.03,153.0,3.268]
[1727349732183,1.3502,153.05,153.0,3.268]
[1727349732387,3.2679,153.01,152.98,3.2685]
[1727349732581,1.3502,153.05,152.92,17.25]
[1727349732782,17.25,153.02,152.92,17.25]
[1727349732983,18.6303,153.01,152.91,17.25]
[1727349733990,3.2688,152.97,152.94,3.2692]
[1727349734882,6.57425357,152.98,152.95,3.2691]
[1727349735287,3.2686,152.98,152.95,3.2691]
[1727349735685,6.52060804,152.99,152.96,3.2689]
[1727349736086,3.25220804,152.99,152.89,1.3161]
[1727349736389,1.3803,153.01,152.91,27.63]
[1727349736791,4.6484,153.01,152.97,3.2686]
[1727349737187,1.3803,153.01,152.91,27.63]
[1727349737393,4.6483,153.01,152.98,3.2684]
[1727349738094,3.2681,153.0,152.97,3.2686]
[1727349738894,3.2683,152.99,152.96,3.2688]
[1727349739288,1.3803,153.01,152.91,27.63]
[1727349739488,3.2682,153.0,152.97,3.2687]
[1727349740087,3.2682,153.0,152.98,3.2685]
[1727349741095,3.31098717,152.99,152.91,27.63]
[1727349741388,3.33715581,152.98,152.89,1.3161]
[1727349741588,29.0103,153.01,152.89,1.3161]
[1727349741794,3.2689,152.97,152.94,3.2692]
[1727349744299,3.2689,152.97,152.95,3.2691]
[1727349744602,6.51558641,152.99,152.89,1.3161]
[1727349745102,3.2682,153.0,152.91,27.63]
[1727349745295,3.28307065,152.99,152.91,27.63]
[1727349745496,3.2686,152.98,152.91,27.63]
[1727349745895,3.2686,152.98,152.95,3.269]
[1727349747101,6.46478885,152.99,152.96,3.2689]
[1727349748095,3.19638885,152.99,152.89,1.3161]
[1727349748295,1.3803,153.01,152.89,1.3161]
[1727349748500,3.2687,152.98,152.95,3.2691]
[1727349748699,3.34784227,152.97,152.95,3.2691]
[1727349749403,3.2687,152.98,152.96,3.2689]
[1727349749601,3.26769557,152.97,152.96,3.2689]
[1727349750402,3.26769557,152.97,152.95,3.269]
[1727349751004,3.2687,152.98,152.89,1.3161]
[1727349751604,3.24316086,152.97,152.89,1.3161]
[1727349751904,3.24316086,152.97,152.95,3.269]
[1727349752304,3.24316086,152.97,152.94,3.2692]
[1727349752495,27.63,153.0,152.94,3.2692]
[1727349753007,1.3249,152.99,152.94,3.2692]
[1727349753208,4.52247193,152.99,152.94,3.2692]
[1727349753508,3.2688,152.97,152.95,3.2692]
[1727349753698,3.21850958,152.96,152.95,3.2692]
[1727349754802,3.2688,152.97,152.95,3.2692]
[1727349755204,6.52156228,152.98,152.96,3.2689]
[1727349755603,3.25286228,152.98,152.96,3.2689]
[1727349756906,1.3249,152.99,152.97,3.2687]
[1727349757114,1.3803,153.01,152.92,17.27]
[1727349757815,3.2681,153.0,152.98,3.2684]
[1727349758613,4.6483,153.01,152.98,3.2684]
[1727349758814,4.6483,153.01,152.99,3.2683]
[1727349759312,1.3803,153.01,152.99,3.2683]
[1727349759515,1.3803,153.01,152.89,1.3161]
[1727349759516,1.2654,153.04,152.96,17.27]
[1727349760810,1.2654,153.04,153.02,3.2676]
[1727349762218,4.5327,153.04,153.01,3.2678]
[1727349764618,1.2654,153.04,153.02,3.2676]
[1727349767518,1.2654,153.04,152.96,17.27]
[1727349767818,1.2654,153.04,152.93,6.5389]
[1727349767819,1.3922,153.06,153.0,17.27]
[1727349768323,1.3117,153.12,153.02,17.27]
[1727349768823,3.2658,153.11,153.08,3.2663]
[1727349769915,1.3117,153.12,153.02,17.27]
[1727349770122,1.3117,153.12,153.04,17.27]
[1727349770521,1.3117,153.12,153.09,3.266]
[1727349770725,4.5773,153.12,153.09,3.266]
[1727349772026,4.5773,153.12,153.08,3.2663]
[1727349772521,1.3117,153.12,153.08,3.2663]
[1727349772729,1.3117,153.12,153.09,3.2662]
[1727349772925,4.5773,153.12,153.09,3.2662]
[1727349774322,3.2659,153.11,153.04,17.27]
[1727349774724,17.27,153.11,153.02,17.27]
[1727349774921,17.27,153.09,153.0,23.8061]
[1727349775725,20.5363,153.09,153.0,23.8061]
[1727349775929,17.27,153.09,153.0,17.27]
[1727349776226,3.2668,153.07,153.03,3.2672]
[1727349776425,3.2268924,153.06,153.03,3.2672]
[1727349776630,17.27,153.09,152.98,18.7427]
[1727349776831,3.2667,153.07,153.04,3.2671]
[1727349777132,3.27265001,153.06,153.04,3.2671]
[1727349778033,3.27265001,153.06,152.98,18.7427]
[1727349778034,3.2669,153.06,153.03,3.2673]
[1727349778229,6.57331997,153.06,153.03,3.2673]
[1727349778432,3.2669,153.06,153.03,3.2673]
[1727349778831,3.2671,153.05,153.03,3.2673]
[1727349779027,17.27,153.07,152.98,18.5394]
[1727349779233,20.58786087,153.07,152.98,18.5394]
[1727349779434,3.2672,153.04,152.98,18.5394]
[1727349780031,3.2672,153.04,153.01,3.2677]
[1727349784141,3.2672,153.04,153.02,3.2677]
[1727349784535,3.2671,153.05,153.02,3.2677]
[1727349785744,2.6483,153.06,152.96,17.27]
[1727349786240,3.2671,153.05,152.96,17.27]
[1727349786630,3.2671,153.05,153.02,3.2675]
[1727349786831,2.6483,153.06,152.96,17.27]
[1727349787129,3.31786087,153.07,153.0,17.27]
[1727349787336,17.27,153.11,153.0,17.27]
[1727349787536,3.2665,153.08,153.0,17.27]
[1727349787738,3.2665,153.08,153.05,3.2669]
[1727349788538,17.27,153.11,153.0,17.27]
[1727349789642,17.27,153.07,152.97,17.27]
[1727349789837,2.649,153.06,152.97,17.27]
[1727349790342,2.649,153.06,152.99,17.27]
[1727349790736,3.24298698,153.07,153.05,3.267]
[1727349790943,17.27,153.09,153.05,3.267]
[1727349792045,3.2664,153.08,153.05,3.267]
[1727349792239,3.30097083,153.07,153.05,3.267]
[1727349792746,17.27,153.09,153.02,3.2675]
[1727349793243,17.27,153.07,152.97,17.27]
[1727349793446,20.54710288,153.07,152.97,17.27]
[1727349793840,3.2673,153.04,153.01,3.2678]
[1727349794834,3.2673,153.04,152.92,1.5548]
[1727349794835,17.27,153.04,153.0,3.268]
[1727349795239,3.2676,153.03,153.01,3.2677]
[1727349795436,17.27,153.04,153.01,3.2677]
[1727349795836,1.3748,153.06,152.97,17.27]
[1727349796440,1.3748,153.06,153.02,3.2675]
[1727349796441,3.2671,153.05,153.02,3.2675]
[1727349796849,3.27710288,153.07,152.99,17.27]
[1727349797147,17.27,153.1,153.05,3.2669]
[1727349799547,3.2665,153.08,153.05,3.2669]
[1727349800248,17.27,153.1,152.99,17.27]
[1727349801253,3.2667,153.07,153.04,3.2672]
[1727349801447,3.18900428,153.15,153.05,17.27]
[1727349801653,2.6391,153.15,153.07,17.27]
[1727349802447,1.3928,153.19,153.11,17.27]
[1727349803148,4.657,153.19,153.11,17.27]
[1727349803448,3.264,153.2,153.16,3.2646]
[1727349803651,6.48614962,153.2,153.16,3.2646]
[1727349804049,3.2641,153.19,153.15,3.2648]
[1727349804849,3.2638,153.21,153.16,3.2645]
[1727349805145,3.26723293,153.21,153.11,17.27]
[1727349805353,17.27,153.17,153.07,18.8108]
[1727349805552,17.27,153.17,153.12,3.2654]
[1727349805553,3.2648,153.16,153.12,3.2654]
[1727349805946,3.2648,153.16,153.09,17.27]
[1727349806353,3.33910486,153.15,153.09,17.27]
[1727349806556,20.5345,153.17,153.09,17.27]
[1727349806952,20.5345,153.17,153.13,3.2653]
[1727349807159,3.2647,153.16,153.13,3.2653]
[1727349807353,3.31939881,153.15,153.13,3.2653]
[1727349808157,3.31939881,153.15,153.09,17.27]
[1727349808158,3.2649,153.15,153.12,3.2655]
[1727349808358,3.32626045,153.14,153.12,3.2655]
[1727349809252,3.32626045,153.14,153.11,3.2656]
[1727349809551,3.2652,153.14,153.11,3.2656]
[1727349809748,3.26646618,153.14,153.11,3.2656]
[1727349809949,3.265,153.15,153.11,3.2656]
[1727349810150,3.265,153.15,153.07,18.6076]
[1727349810755,6.59626388,153.15,153.07,18.6076]
[1727349810955,3.2652,153.14,153.11,3.2656]
[1727349811154,17.27,153.15,153.05,89.09336388]
[1727349811353,17.27,153.11,153.05,71.82336388]
[1727349811654,17.27,153.11,152.99,7.8021]
[1727349811655,17.27,153.11,153.01,17.27]
[1727349811957,2.6488,153.1,153.01,17.27]
[1727349812450,3.2663,153.09,153.05,3.2668]
[1727349812656,3.2663,153.09,153.01,17.27]
[1727349813168,3.2663,153.09,153.06,3.2667]
[1727349813965,17.27,153.07,152.99,1.2658]
[1727349814465,3.2669,153.06,153.03,3.2674]
[1727349814654,17.27,153.07,152.99,1.2658]
[1727349815363,3.2672,153.05,153.02,3.2675]
[1727349815560,17.27,153.05,152.95,17.27]
[1727349816066,17.27,153.03,152.91,1.4672]
[1727349816364,17.27,153.03,152.94,17.27]
[1727349816764,6.53082982,153.02,152.99,3.2682]
[1727349817163,3.26302982,153.02,152.94,17.27]
[1727349817359,6.53072982,153.02,152.99,3.2682]
[1727349822564,6.53072982,153.02,152.98,3.2684]
[1727349823264,3.2679,153.01,152.98,3.2684]
[1727349823967,6.53082982,153.02,152.98,3.2684]
[1727349824569,3.2679,153.01,152.98,3.2684]
[1727349824865,20.5379,153.01,152.97,3.2686]
[1727349825069,20.5379,153.01,152.92,17.27]
[1727349825667,17.27,152.97,152.85,6.5426]
[1727349825866,17.27,152.97,152.87,17.27]
[1727349826062,17.27,152.96,152.87,17.27]
[1727349826263,3.2693,152.95,152.87,17.27]
[1727349826464,17.27,152.98,152.87,17.27]
[1727349826764,3.2689,152.97,152.87,17.27]
[1727349826969,3.2689,152.97,152.94,3.2692]
[1727349827270,21.3888,153.0,152.89,17.27]
[1727349827466,3.2687,152.98,152.95,3.269]
[1727349828167,3.2687,152.97,152.95,3.269]
[1727349828369,3.2687,152.97,152.94,3.2693]
[1727349831861,3.2687,152.97,152.89,17.27]
[1727349832064,3.269,152.96,152.93,3.2695]
[1727349833671,3.2689,152.97,152.89,17.27]
[1727349834069,3.2689,152.97,152.95,3.2691]
[1727349834273,3.2686,152.98,152.95,3.2691]
[1727349835374,21.3888,153.0,152.89,17.27]
[1727349835770,3.2686,152.98,152.95,3.2691]
[1727349837669,3.2688,152.97,152.95,3.2691]
[1727349841276,3.2688,152.97,152.94,3.2693]
[1727349843879,3.2685,152.98,152.95,3.269]
[1727349844072,21.3888,153.0,152.95,3.269]
[1727349844776,3.2687,152.97,152.94,3.2693]
[1727349846380,14.3187,152.97,152.94,3.2693]
[1727349847681,6.0092,153.0,152.87,71.91031652]
[1727349847884,2.6073,153.04,152.99,11.05]
[1727349848088,3.28372491,153.03,152.99,11.05]
[1727349848279,6.82793633,153.2,152.87,71.91031652]
[1727349848280,3.9388,153.1,153.02,11.05]
[1727349848475,11.05,153.08,153.02,11.05]
[1727349848781,14.25758417,153.08,153.02,11.05]
[1727349848986,11.05,153.05,152.92,1.4894]
[1727349849286,11.05,153.02,152.97,11.05]
[1727349849483,3.24288983,153.01,152.97,11.05]
[1727349849691,3.24288983,153.01,152.99,3.2682]
[1727349850082,11.05,153.02,152.99,3.2682]
[1727349850280,14.25268061,153.02,152.99,3.2682]
[1727349850683,17.52038061,153.02,152.98,3.2684]
[1727349850881,17.52038061,153.02,152.97,11.05]
[1727349851786,17.52038061,153.02,152.99,3.2682]
[1727349852392,14.25268061,153.02,152.99,3.2682]
[1727349853283,3.20268061,153.02,152.99,3.2682]
[1727349853481,14.3177,153.02,152.99,3.2682]
[1727349853685,3.20265498,153.01,152.99,3.2682]
[1727349854081,11.05,153.01,152.92,1.2836]
[1727349854287,3.31513209,153.0,152.95,11.05]
[1727349855095,6.58323209,153.0,152.95,11.05]
[1727349855795,6.58323209,153.0,152.97,3.2686]
[1727349855997,17.63323209,153.0,152.97,3.2686]
[1727349856301,11.05,152.98,152.96,3.2689]
[1727349856498,11.05,152.98,152.93,11.05]
[1727349856701,11.05,152.95,152.93,3.2695]
[1727349857495,14.36359979,152.95,152.92,3.2697]
[1727349857697,11.05,152.94,152.92,3.2697]
[1727349861001,11.05,152.94,152.87,71.91031652]
[1727349861002,11.05,152.93,152.91,3.2699]
[1727349861202,11.05,152.92,152.91,3.2699]
[1727349861405,11.05,152.93,152.91,3.2699]
[1727349861909,6.47557022,152.94,152.92,3.2698]
[1727349862206,17.52557022,152.94,152.92,3.2698]
[1727349863403,11.05,152.93,152.91,3.2699]
[1727349865809,11.05,152.92,152.91,3.2699]
[1727349868614,11.05,152.93,152.92,3.2698]
[1727349869407,1.301,153.03,152.93,3.2694]
[1727349869610,11.05,152.94,152.93,3.2694]
[1727349869809,11.05,152.94,152.87,71.91031652]
[1727349869810,1.301,153.03,152.92,11.05]
[1727349870013,11.05,152.98,152.92,11.05]
[1727349870215,14.27155335,152.98,152.92,11.05]
[1727349870610,14.27155335,152.98,152.95,3.269]
[1727349872021,17.54005335,152.98,152.95,3.269]
[1727349873516,11.05,152.96,152.94,3.2693]
[1727349875517,11.05,152.96,152.95,3.2692]
[1727349876610,6.49015335,152.98,152.95,3.2692]
[1727349876911,11.05,152.97,152.95,3.2692]
[1727349877814,3.35144069,153.0,152.96,11.05]
[1727349878016,11.05,152.99,152.87,71.91031652]
[1727349878212,11.05,152.99,152.93,11.05]
[1727349878408,3.30138989,152.98,152.93,11.05]
[1727349878812,3.30138989,152.98,152.96,3.2688]
[1727349879916,11.05,152.97,152.95,3.2691]
[1727349880121,11.05,152.96,152.95,3.2691]
[1727349880617,11.05,152.96,152.87,71.91031652]
[1727349880914,11.05,152.95,152.9,11.05]
[1727349881115,14.26229371,152.95,152.9,11.05]
[1727349881317,14.26229371,152.95,152.93,3.2694]
[1727349883113,11.05,152.96,152.91,11.05]
[1727349883716,11.05,152.96,152.94,3.2692]
[1727349884519,11.05,152.96,152.95,3.2692]
[1727349885619,3.29735292,152.97,152.95,3.2692]
[1727349885818,14.34735292,152.97,152.95,3.2692]
[1727349887225,17.61615292,152.97,152.94,3.2692]
[1727349887419,14.34735292,152.97,152.94,3.2692]
[1727349888620,17.61615292,152.97,152.94,3.2692]
[1727349888822,11.05,152.96,152.94,3.2692]
[1727349889626,14.25586811,152.96,152.94,3.2692]
[1727349892016,5.9398,152.98,152.95,3.2691]
[1727349892220,11.05,152.97,152.93,11.05]
[1727349892617,11.05,152.97,152.88,6.541]
[1727349892618,14.37690599,152.97,152.88,6.541]
[1727349892818,11.05,152.92,152.86,1.3076]
[1727349893019,11.05,152.92,152.87,11.05]
[1727349893523,11.05,152.92,152.9,3.2701]
[1727349893920,11.05,152.91,152.88,3.2705]
[1727349894516,14.3201,152.91,152.88,3.2705]
[1727349895224,11.05,152.89,152.88,3.2705]
[1727349896423,3.27313188,152.91,152.82,1.3458]
[1727349896626,17.29,152.92,152.82,1.3458]
[1727349896830,17.29,152.9,152.82,1.3458]
[1727349897025,3.2707,152.88,152.82,1.3458]
[1727349897826,3.33203027,152.89,152.82,1.3458]
[1727349898031,17.29,152.9,152.82,1.3458]
[1727349898828,3.2708,152.88,152.85,3.2711]
[1727349899029,6.50366465,152.88,152.85,3.2711]
[1727349899228,3.23286465,152.88,152.82,1.3458]
[1727349899427,17.29,152.9,152.79,17.29]
[1727349899629,17.29,152.9,152.78,78.5]
[1727349899829,17.29,152.9,152.79,30.10157961]
[1727349899830,18.556,152.9,152.79,30.10157961]
[1727349900023,3.271,152.87,152.84,3.2715]
[1727349900223,3.21638391,152.86,152.78,78.5]
[1727349900423,3.2713,152.85,152.78,78.5]
[1727349901030,3.2715,152.84,152.81,3.272]
[1727349901226,17.29,152.84,152.78,78.5]
[1727349901531,17.29,152.82,152.73,0.205]
[1727349902228,3.2723,152.81,152.77,3.2728]
[1727349903639,3.2716,152.84,152.74,17.29]
[1727349903832,2.5521,152.85,152.78,17.29]
[1727349904132,2.5521,152.85,152.83,3.2716]
[1727349904342,2.5521,152.85,152.78,17.29]
[1727349904635,2.5521,152.85,152.84,3.2715]
[1727349904834,1.266,152.9,152.82,17.29]
[1727349905034,3.8963,152.9,152.82,17.29]
[1727349905335,3.22221494,152.89,152.82,17.29]
[1727349906230,6.49271494,152.89,152.85,3.2712]
[1727349906735,3.22221494,152.89,152.79,17.29]
[1727349906925,3.2707,152.88,152.84,3.2714]
[1727349907128,17.29,152.87,152.78,1.3744]
[1727349907326,6.57584096,152.86,152.82,3.2719]
[1727349909134,17.29,152.83,152.76,78.54]
[1727349909836,3.2716,152.84,152.8,3.2723]
[1727349910236,4.6158,152.84,152.8,3.2723]
[1727349910540,3.2717,152.83,152.8,3.2723]
[1727349911535,1.3442,152.84,152.74,89.24747209]
[1727349911941,4.6157,152.84,152.81,3.2721]
[1727349912938,1.3442,152.84,152.76,17.29]
[1727349913243,17.29,152.87,152.76,17.29]
[1727349913437,20.5609,152.87,152.77,1.3807]
[1727349913638,23.78783642,152.87,152.83,3.2716]
[1727349914032,23.78783642,152.87,152.77,1.3807]
[1727349914033,3.2711,152.86,152.77,1.3807]
[1727349914240,3.2711,152.86,152.82,3.2718]
[1727349915541,3.2711,152.86,152.83,3.2717]
[1727349915842,20.51693642,152.87,152.83,3.2717]
[1727349915843,23.78783642,152.87,152.83,3.2717]
[1727349916239,3.2708,152.88,152.78,17.29]
[1727349916440,6.53255199,152.88,152.78,17.4957]
[1727349916640,3.26175199,152.88,152.78,17.4957]
[1727349916845,3.271,152.87,152.83,3.2716]
[1727349917045,6.62310161,152.87,152.83,3.2716]
[1727349917338,21.933,152.89,152.78,17.4957]
[1727349917542,3.34260835,152.88,152.78,17.4957]
[1727349917940,3.2712,152.86,152.83,3.2717]
[1727349918145,6.54768291,152.86,152.83,3.2717]
[1727349920742,3.2715,152.85,152.77,18.6707]
[1727349920947,3.27648291,152.86,152.77,18.6707]
[1727349921143,17.29,152.85,152.77,1.3807]
[1727349921349,3.2716,152.84,152.81,3.2721]
[1727349922748,4.6708,152.84,152.81,3.2721]
[1727349926050,3.2725,152.8,152.76,3.2731]
[1727349926261,17.29,152.78,152.71,1.3066]
[1727349926654,2.6283,152.83,152.71,1.3066]
[1727349926655,20.5625,152.8,152.76,3.2731]
[1727349926851,3.22333529,152.79,152.76,3.2731]
[1727349927051,20.5625,152.8,152.76,3.2731]
[1727349927547,23.84574494,152.8,152.76,3.2731]
[1727349928545,17.29,152.8,152.77,3.273]
[1727349929451,17.29,152.8,152.71,18.5966]
[1727349929957,20.5624,152.8,152.76,3.2732]
[1727349931052,17.29,152.8,152.71,18.5966]
[1727349931351,17.29,152.82,152.73,17.29]
[1727349931547,1.3992,152.84,152.77,17.29]
[1727349931754,9.83429136,152.97,152.77,17.29]
[1727349931755,18.6419,152.88,152.77,17.29]
[1727349932048,3.2713,152.85,152.77,17.29]
[1727349932253,6.54240761,152.85,152.77,17.29]
[1727349932853,6.54240761,152.85,152.82,3.2719]
[1727349934461,3.2715,152.84,152.81,3.2721]
[1727349934965,3.2713,152.85,152.77,17.29]
[1727349935162,23.1604002,152.88,152.77,17.29]
[1727349935554,17.29,152.85,152.75,17.29]
[1727349935957,3.2717,152.84,152.8,3.2722]
[1727349936262,17.29,152.85,152.8,3.2722]
[1727349936657,17.29,152.85,152.79,3.2724]
[1727349937263,3.2719,152.83,152.79,3.2724]
[1727349937461,3.2719,152.83,152.8,3.2724]
[1727349938065,3.272,152.82,152.79,3.2724]
[1727349938656,3.2722,152.81,152.79,3.2724]
[1727349938855,17.29,152.85,152.79,3.2724]
[1727349939062,17.29,152.85,152.75,17.29]
[1727349939264,3.2719,152.83,152.75,17.29]
[1727349939461,3.2719,152.83,152.8,3.2722]
[1727349940460,3.272,152.82,152.79,3.2725]
[1727349941069,3.2723,152.81,152.75,17.29]
[1727349941362,3.3322478,152.8,152.71,79.8666]
[1727349941563,20.62584952,152.79,152.71,79.8666]
[1727349941873,17.29,152.79,152.71,79.8666]
[1727349942371,23.91317157,152.79,152.76,3.2731]
[1727349942567,5.8704002,152.88,152.74,17.29]
[1727349942758,17.29,152.86,152.74,17.29]
[1727349943170,3.272,152.82,152.74,17.29]
[1727349943770,3.272,152.82,152.8,3.2723]
[1727349943968,17.29,152.86,152.8,3.2723]
[1727349943969,3.2718,152.83,152.8,3.2723]
[1727349944163,17.29,152.86,152.74,17.29]
[1727349944364,3.2721,152.82,152.79,3.2724]
[1727349947671,3.2722,152.81,152.79,3.2724]
[1727349948466,5.8704002,152.88,152.74,17.29]
[1727349948674,23.1604002,152.88,152.78,17.29]
[1727349949166,3.2709,152.87,152.8,17.29]
[1727349950472,17.29,152.92,152.82,17.29]
[1727349951181,3.27,152.91,152.88,3.2705]
[1727349951477,3.27,152.91,152.84,17.29]
[1727349951667,17.29,152.94,152.84,17.29]
[1727349952173,3.2701,152.91,152.88,3.2705]
[1727349958574,17.29,152.89,152.78,0.2057]
[1727349958776,17.29,152.88,152.78,17.4957]
[1727349959375,4.0407,152.95,152.8,17.29]
[1727349959376,17.29,152.9,152.8,17.29]
[1727349959583,17.29,152.91,152.8,17.29]
[1727349959879,17.29,152.91,152.87,3.2708]
[1727349959880,3.2703,152.9,152.87,3.2708]
[1727349960176,17.29,152.91,152.8,17.29]
[1727349960573,3.2705,152.89,152.86,3.2709]
[1727349961576,17.29,152.91,152.82,17.29]
[1727349962286,20.5601,152.91,152.82,17.29]
[1727349962782,3.2703,152.9,152.87,3.2707]
[1727349963483,17.29,152.91,152.82,17.29]
[1727349963979,3.2708,152.88,152.82,17.29]
[1727349964187,6.56049927,152.88,152.82,17.29]
[1727349964376,3.2708,152.88,152.82,17.29]
[1727349964580,3.2708,152.88,152.85,3.2711]
[1727349964984,6.50158514,152.88,152.85,3.2711]
[1727349965380,3.23078514,152.88,152.79,17.29]
[1727349965577,17.29,152.85,152.78,78.54]
[1727349966581,3.2719,152.83,152.8,3.2723]
[1727349966783,3.2719,152.83,152.78,78.54]
[1727349967985,3.2716,152.84,152.78,78.54]
[1727349968784,3.2717,152.83,152.78,78.54]
[1727349969378,3.2716,152.84,152.81,3.272]
[1727349969779,17.29,152.85,152.76,17.29]
[1727349969985,3.2719,152.83,152.8,3.2722]
[1727349970779,3.272,152.82,152.8,3.2722]
[1727349970985,17.29,152.85,152.76,17.29]
[1727349972078,3.2717,152.84,152.76,17.29]
[1727349972779,3.2717,152.84,152.81,3.272]
[1727349973386,3.2717,152.83,152.81,3.272]
[1727349974092,3.272,152.82,152.8,3.2723]
[1727349974390,3.20182044,152.81,152.73,0.2043]
[1727349974592,17.29,152.83,152.73,0.2043]
[1727349975592,17.29,152.83,152.72,95.83]
[1727349975989,3.2722,152.81,152.72,95.83]
[1727349976192,6.59025818,152.81,152.72,95.83]
[1727349976389,3.2722,152.81,152.72,95.83]
[1727349976889,6.54376017,152.81,152.72,95.83]
[1727349977789,20.56156017,152.81,152.72,78.54]
[1727349978485,3.2729,152.78,152.76,3.2732]
[1727349978985,21.86396017,152.81,152.7,17.4954]
[1727349978986,3.2731,152.77,152.7,17.29]
[1727349979184,3.2731,152.77,152.75,3.2734]
[1727349981692,3.2732,152.76,152.68,17.29]
[1727349981892,3.2732,152.76,152.69,12.86634289]
[1727349982094,3.2732,152.76,152.74,3.2736]
[1727349982296,4.57396017,152.81,152.7,23.839]
[1727349982592,17.29,152.8,152.7,23.839]
[1727349982984,17.29,152.8,152.7,17.29]
[1727349983597,3.2729,152.78,152.75,3.2733]
[1727349984699,3.2729,152.78,152.76,3.2732]
[1727349985398,17.29,152.8,152.79,3.2726]
[1727349985592,17.29,152.8,152.7,17.29]
[1727349985997,3.2729,152.78,152.75,3.2733]
[1727349986392,17.29,152.78,152.7,17.29]
[1727349986599,3.2732,152.77,152.74,3.2735]
[1727349986797,17.29,152.78,152.7,17.29]
[1727349986995,3.2733,152.76,152.73,3.2737]
[1727349988005,3.2733,152.76,152.68,17.29]
[1727349989809,3.2733,152.76,152.74,3.2736]
[1727349990309,3.2731,152.77,152.68,17.29]
[1727349990512,21.86396017,152.81,152.7,17.29]